fUSD/lending_fUSD_20250616
["ID","MTS","AMOUNT","RATE_DAILY","PERIOD"]
[366051077,1750032664345,-151.0,0.00016767,2]
[366051078,1750032664355,-497.28974,0.00016767,2]
[366051079,1750032664365,-497.28974,0.00016767,2]
[366051080,1750032664375,-497.28974,0.00016767,2]
[366051081,1750032664386,-497.28974,0.00016767,2]
[366051082,1750032664396,-497.28974,0.00016767,2]
[366051083,1750032664406,-497.28974,0.00016767,2]
[366051084,1750032664415,-249.563023,0.00016767,2]
[366051085,1750032664425,-231.726696,0.00016767,2]
[366051086,1750032664435,-231.726696,0.00016767,2]
[366051087,1750032664446,-231.726696,0.00016767,2]
[366051088,1750032664456,-231.726696,0.00016767,2]
[366051089,1750032664466,-231.726696,0.00016767,2]
[366051090,1750032664475,-231.726696,0.00016767,2]
[366051091,1750032664485,-187.202094,0.00016767,2]
[366051092,1750032664495,-187.202094,0.00016767,2]
[366051093,1750032664504,-187.202094,0.00016767,2]
[366051094,1750032664513,-187.202094,0.00016767,2]
[366051095,1750032664524,-187.202094,0.00016767,2]
[366051096,1750032664534,-187.202094,0.00016767,2]
[366051097,1750032664544,-235.506388,0.00016767,2]
[366051098,1750032664554,-186.321364,0.00016767,2]
[366051099,1750032664564,-186.321364,0.00016767,2]
[366051100,1750032664573,-186.321364,0.00016767,2]
[366051101,1750032664583,-186.321364,0.00016767,2]
[366051102,1750032664594,-186.321364,0.00016767,2]
[366051103,1750032664604,-186.321364,0.00016767,2]
[366051104,1750032664614,-360.756242,0.00016767,2]
[366051105,1750032664624,-360.756242,0.00016767,2]
[366051106,1750032664634,-360.756242,0.00016767,2]
[366051107,1750032664644,-360.756242,0.00016767,2]
[366051108,1750032664653,-360.756242,0.00016767,2]
[366051109,1750032664663,-360.756242,0.00016767,2]
[366051110,1750032664672,-536.241291,0.00016767,2]
[366051111,1750032664682,-536.241291,0.00016767,2]
[366051112,1750032664692,-536.241291,0.00016767,2]
[366051113,1750032664702,-536.241291,0.00016767,2]
[366051114,1750032664711,-536.241291,0.00016767,2]
[366051115,1750032664723,-536.241291,0.00016767,2]
[366051116,1750032664732,-151.0,0.00016767,2]
[366051117,1750032664742,-151.0,0.00016767,2]
[366051118,1750032664752,-151.0,0.00016767,2]
[366051119,1750032664762,-151.0,0.00016767,2]
[366051120,1750032664772,-151.0,0.00016767,2]
[366051121,1750032664782,-151.0,0.00016767,2]
[366051122,1750032664792,-151.0,0.00016767,2]
[366051123,1750032664802,-209.626243,0.00016767,2]
[366051124,1750032664811,-151.0,0.00016767,2]
[366051125,1750032664821,-151.0,0.00016767,2]
[366051126,1750032664831,-151.276231,0.00016767,2]
[366051127,1750032664840,-151.0,0.00016767,2]
[366051128,1750032664851,-151.0,0.00016767,2]
[366051129,1750032664861,-151.0,0.00016767,2]
[366051130,1750032664871,-151.0,0.00016767,2]
[366051131,1750032664880,-151.0,0.00016767,2]
[366051132,1750032664890,-151.0,0.00016767,2]
[366051133,1750032664914,-151.0,0.00016767,2]
[366051134,1750032664924,-151.0,0.00016767,2]
[366051135,1750032664934,-273.608289,0.00016767,2]
[366051136,1750032664944,-229.587839,0.00016767,2]
[366051137,1750032664955,-229.587839,0.00016767,2]
[366051138,1750032664965,-229.587839,0.00016767,2]
[366051139,1750032664975,-490.0,0.00016767,2]
[366051140,1750032664985,-229.587839,0.00016767,2]
[366051141,1750032664995,-287.058184,0.00016767,2]
[366051142,1750032665005,-229.587839,0.00016767,2]
[366051143,1750032665015,-287.058184,0.00016767,2]
[366051144,1750032665025,-229.587839,0.00016767,2]
[366051145,1750032665035,-287.058184,0.00016767,2]
[366051146,1750032665507,-287.058184,0.00016767,2]
[366051147,1750032665542,-287.058184,0.00016767,2]
[366051148,1750032665552,-287.058184,0.00016767,2]
[366051149,1750032665562,-1225.542398,0.00016767,2]
[366051150,1750032665573,-1225.542398,0.00016767,2]
[366051151,1750032665582,-1225.542398,0.00016767,2]
[366051152,1750032665592,-1225.542398,0.00016767,2]
[366051153,1750032665603,-1225.542398,0.00016767,2]
[366051154,1750032665613,-1225.542398,0.00016767,2]
[366051155,1750032665623,-3293.417796,0.00016767,2]
[366051156,1750032665640,-580.88,0.00016767,2]
[366051157,1750032665651,-485.92,0.00016767,2]
[366051158,1750032665663,-683.35,0.00016767,2]
[366051159,1750032665673,-4819.150082,0.00016767,2]
[366051160,1750032665684,-527.77,0.00016767,2]
[366051161,1750032665695,-490.0,0.00016767,2]
[366051162,1750032665706,-490.0,0.00016767,2]
[366051163,1750032665716,-490.0,0.00016767,2]
[366051164,1750032665726,-490.0,0.00016767,2]
[366051165,1750032665737,-1005.14,0.00016767,2]
[366051166,1750032665747,-490.0,0.00016767,2]
[366051167,1750032665758,-583.28,0.00016767,2]
[366051168,1750032665768,-1200.91,0.00016767,2]
[366051169,1750032665778,-490.0,0.00016767,2]
[366051170,1750032665789,-490.0,0.00016767,2]
[366051171,1750032665800,-490.0,0.00016767,2]
[366051172,1750032665811,-163.58545108,0.00016767,2]
[366051173,1750032665822,-490.0,0.00016767,2]
[366051174,1750032665833,-663.47,0.00016767,2]
[366051175,1750032665843,-823.88,0.00016767,2]
[366051176,1750032665856,-588.05,0.00016767,2]
[366051177,1750032665867,-490.0,0.00016767,2]
[366051178,1750032665877,-490.0,0.00016767,2]
[366051179,1750032665889,-205.717229,0.00016767,2]
[366051180,1750032665901,-691.49,0.00016767,2]
[366051181,1750032665912,-490.0,0.00016767,2]
[366051182,1750032665923,-990.71,0.00016767,2]
[366051183,1750032665935,-791.52,0.00016767,2]
[366051184,1750032665947,-273.874248,0.00016767,2]
[366051185,1750032665958,-273.874248,0.00016767,2]
[366051186,1750032665969,-273.874248,0.00016767,2]
[366051187,1750032665979,-302.969716,0.00016767,2]
[366051188,1750032665991,-302.969716,0.00016767,2]
[366051189,1750032666001,-1028.14,0.00016767,2]
[366051190,1750032666012,-452.50856596,0.00016767,2]
[366051191,1750032666022,-273.874248,0.00016767,2]
[366051192,1750032666033,-273.874248,0.00016767,2]
[366051193,1750032666044,-490.0,0.00016767,2]
[366051194,1750032666056,-302.969716,0.00016767,2]
[366051195,1750032666066,-273.874248,0.00016767,2]
[366051196,1750032666077,-302.969716,0.00016767,2]
[366051197,1750032666094,-490.0,0.00016767,2]
[366051198,1750032666107,-615.13,0.00016767,2]
[366051199,1750032666118,-527.78,0.00016767,2]
[366051200,1750032666129,-2046.8,0.00016767,2]
[366051201,1750032666139,-490.0,0.00016767,2]
[366051202,1750032666150,-490.0,0.00016767,2]
[366051203,1750032666163,-816.46,0.00016767,2]
[366051204,1750032666173,-490.0,0.00016767,2]
[366051205,1750032666184,-521.53562706,0.00016767,2]
[366051206,1750032666194,-542.37,0.00016767,2]
[366051207,1750032666205,-490.0,0.00016767,2]
[366051208,1750032666216,-490.0,0.00016767,2]
[366051209,1750032666226,-806.44,0.00016767,2]
[366051210,1750032666237,-1786.89,0.00016767,2]
[366051211,1750032666249,-490.0,0.00016767,2]
[366051212,1750032666259,-490.0,0.00016767,2]
[366051213,1750032666269,-151.0,0.00016767,2]
[366051214,1750032666279,-151.0,0.00016767,2]
[366051215,1750032666289,-151.0,0.00016767,2]
[366051216,1750032666300,-151.0,0.00016767,2]
[366051217,1750032666311,-490.0,0.00016767,2]
[366051218,1750032666323,-151.0,0.00016767,2]
[366051219,1750032666333,-151.0,0.00016767,2]
[366051220,1750032666345,-151.0,0.00016767,2]
[366051221,1750032666357,-151.0,0.00016767,2]
[366051222,1750032666368,-151.0,0.00016767,2]
[366051223,1750032666378,-224.394778,0.00016767,2]
[366051224,1750032666389,-151.0,0.00016767,2]
[366051225,1750032666400,-151.0,0.00016767,2]
[366051226,1750032666411,-490.0,0.00016767,2]
[366051227,1750032666422,-151.0,0.00016767,2]
[366051228,1750032666432,-151.0,0.00016767,2]
[366051229,1750032666443,-624.48,0.00016767,2]
[366051230,1750032666453,-151.0,0.00016767,2]
[366051231,1750032666463,-151.0,0.00016767,2]
[366051232,1750032666474,-490.0,0.00016767,2]
[366051233,1750032666484,-490.0,0.00016767,2]
[366051234,1750032666494,-490.0,0.00016767,2]
[366051235,1750032666503,-490.0,0.00016767,2]
[366051236,1750032666513,-490.0,0.00016767,2]
[366051237,1750032666537,-578.53,0.00016767,2]
[366051238,1750032666549,-490.0,0.00016767,2]
[366051239,1750032666560,-490.0,0.00016767,2]
[366051240,1750032666571,-490.0,0.00016767,2]
[366051241,1750032666583,-490.0,0.00016767,2]
[366051242,1750032666595,-490.0,0.00016767,2]
[366051243,1750032666607,-545.44,0.00016767,2]
[366051244,1750032666618,-490.0,0.00016767,2]
[366051245,1750032666630,-369.24975821,0.00016767,2]
[366051246,1750032666641,-760.37,0.00016767,2]
[366051247,1750032666653,-636.73,0.00016767,2]
[366051248,1750032666664,-942.58,0.00016767,2]
[366051249,1750032666675,-536.84751417,0.00016767,2]
[366051250,1750032666686,-562.94,0.00016767,2]
[366051251,1750032666697,-151.0,0.00016767,2]
[366051252,1750032666708,-151.0,0.00016767,2]
[366051253,1750032666719,-285.93271,0.00016767,2]
[366051254,1750032666730,-1015.38,0.00016767,2]
[366051255,1750032666741,-285.93271,0.00016767,2]
[366051256,1750032666752,-490.0,0.00016767,2]
[366051257,1750032666764,-155.595,0.00016767,2]
[366051258,1750032666775,-151.0,0.00016767,2]
[366051259,1750032666787,-151.0,0.00016767,2]
[366051260,1750032666799,-285.45109,0.00016767,2]
[366051261,1750032666810,-285.93271,0.00016767,2]
[366051262,1750032666821,-285.93271,0.00016767,2]
[366051263,1750032666832,-490.0,0.00016767,2]
[366051264,1750032666843,-194.300222,0.00016767,2]
[366051265,1750032666855,-194.300222,0.00016767,2]
[366051266,1750032666866,-742.29,0.00016767,2]
[366051267,1750032666878,-194.300222,0.00016767,2]
[366051268,1750032666888,-194.300222,0.00016767,2]
[366051269,1750032666900,-151.0,0.00016767,2]
[366051270,1750032666910,-151.0,0.00016767,2]
[366051271,1750032666921,-490.0,0.00016767,2]
[366051272,1750032666932,-600.4,0.00016767,2]
[366051273,1750032666943,-151.0,0.00016767,2]
[366051274,1750032666959,-245.160779,0.00016767,2]
[366051275,1750032666970,-245.160779,0.00016767,2]
[366051276,1750032666982,-1071.58,0.00016767,2]
[366051277,1750032666995,-1127.69,0.00016767,2]
[366051278,1750032667007,-245.160779,0.00016767,2]
[366051279,1750032667019,-245.160779,0.00016767,2]
[366051280,1750032667030,-164.048763,0.00016767,2]
[366051281,1750032667042,-164.048763,0.00016767,2]
[366051282,1750032667052,-164.048763,0.00016767,2]
[366051283,1750032667064,-490.0,0.00016767,2]
[366051284,1750032667075,-164.048763,0.00016767,2]
[366051285,1750032667088,-164.048763,0.00016767,2]
[366051286,1750032667099,-164.048763,0.00016767,2]
[366051287,1750032667111,-267.796822,0.00016767,2]
[366051288,1750032667122,-267.796822,0.00016767,2]
[366051289,1750032667133,-267.796822,0.00016767,2]
[366051290,1750032667145,-490.0,0.00016767,2]
[366051291,1750032667156,-267.796822,0.00016767,2]
[366051292,1750032667167,-267.796822,0.00016767,2]
[366051293,1750032667178,-490.0,0.00016767,2]
[366051294,1750032667189,-267.796822,0.00016767,2]
[366051295,1750032667201,-490.0,0.00016767,2]
[366051296,1750032667212,-962.58,0.00016767,2]
[366051297,1750032667223,-490.0,0.00016767,2]
[366051298,1750032667234,-758.33,0.00016767,2]
[366051299,1750032667245,-490.0,0.00016767,2]
[366051300,1750032667256,-361.94926577,0.00016767,2]
[366051301,1750032667267,-670.81,0.00016767,2]
[366051302,1750032667278,-490.0,0.00016767,2]
[366051303,1750032667290,-490.0,0.00016767,2]
[366051304,1750032667301,-1232.08,0.00016767,2]
[366051305,1750032667312,-490.0,0.00016767,2]
[366051306,1750032667323,-490.0,0.00016767,2]
[366051307,1750032667335,-808.46,0.00016767,2]
[366051308,1750032667346,-490.0,0.00016767,2]
[366051309,1750032667357,-490.0,0.00016767,2]
[366051310,1750032667368,-768.99,0.00016767,2]
[366051311,1750032667380,-468.55979049,0.00016767,2]
[366051312,1750032667397,-1511.64,0.00016767,2]
[366051313,1750032667409,-636.41,0.00016767,2]
[366051314,1750032667420,-538.91,0.00016767,2]
[366051315,1750032667432,-490.0,0.00016767,2]
[366051316,1750032667444,-490.0,0.00016767,2]
[366051317,1750032667455,-580.98,0.00016767,2]
[366051318,1750032667466,-490.0,0.00016767,2]
[366051319,1750032667477,-1264.36,0.00016767,2]
[366051320,1750032667489,-490.0,0.00016767,2]
[366051321,1750032667499,-402.0431773,0.00016767,2]
[366051322,1750032667512,-797.89,0.00016767,2]
[366051323,1750032667528,-190.319943,0.00016767,2]
[366051324,1750032667540,-190.319943,0.00016767,2]
[366051325,1750032667553,-190.319943,0.00016767,2]
[366051326,1750032667564,-490.0,0.00016767,2]
[366051327,1750032667575,-775.42,0.00016767,2]
[366051328,1750032667586,-190.319943,0.00016767,2]
[366051329,1750032667597,-190.319943,0.00016767,2]
[366051330,1750032667607,-190.319943,0.00016767,2]
[366051331,1750032667618,-1765.92,0.00016767,2]
[366051332,1750032667630,-639.28,0.00016767,2]
[366051333,1750032667641,-490.0,0.00016767,2]
[366051334,1750032667652,-490.0,0.00016767,2]
[366051335,1750032667663,-490.0,0.00016767,2]
[366051336,1750032667673,-703.94,0.00016767,2]
[366051337,1750032667684,-364.81,0.00016767,2]
[366051338,1750032667693,-929.2,0.00016767,2]
[366051339,1750032667703,-490.0,0.00016767,2]
[366051340,1750032667714,-490.0,0.00016767,2]
[366051341,1750032667724,-490.0,0.00016767,2]
[366051342,1750032667734,-1618.79,0.00016767,2]
[366051343,1750032667746,-1369.5,0.00016767,2]
[366051344,1750032667757,-1905.93,0.00016767,2]
[366051345,1750032667767,-490.0,0.00016767,2]
[366051346,1750032667778,-490.0,0.00016767,2]
[366051347,1750032667789,-869.67,0.00016767,2]
[366051348,1750032667801,-1499.04,0.00016767,2]
[366051349,1750032667812,-546.07,0.00016767,2]
[366051350,1750032667822,-696.95,0.00016767,2]
[366051351,1750032667833,-490.0,0.00016767,2]
[366051352,1750032667844,-967.48,0.00016767,2]
[366051353,1750032667856,-1790.68,0.00016767,2]
[366051354,1750032667867,-554.29,0.00016767,2]
[366051355,1750032667877,-490.0,0.00016767,2]
[366051356,1750032667887,-1436.16,0.00016767,2]
[366051357,1750032667901,-490.0,0.00016767,2]
[366051358,1750032667911,-1652.09,0.00016767,2]
[366051359,1750032667922,-592.2,0.00016767,2]
[366051360,1750032667933,-490.0,0.00016767,2]
[366051361,1750032667945,-448.612453,0.00016767,2]
[366051362,1750032667957,-513.16,0.00016767,2]
[366051363,1750032667970,-448.612453,0.00016767,2]
[366051364,1750032667980,-448.612453,0.00016767,2]
[366051365,1750032667992,-490.0,0.00016767,2]
[366051366,1750032668003,-490.0,0.00016767,2]
[366051367,1750032668014,-448.612453,0.00016767,2]
[366051368,1750032668027,-448.612453,0.00016767,2]
[366051369,1750032668037,-490.0,0.00016767,2]
[366051370,1750032668048,-557.6,0.00016767,2]
[366051371,1750032668059,-151.0,0.00016767,2]
[366051372,1750032668070,-448.612453,0.00016767,2]
[366051373,1750032668081,-151.0,0.00016767,2]
[366051374,1750032668091,-273.400674,0.00016767,2]
[366051375,1750032668102,-490.0,0.00016767,2]
[366051376,1750032668113,-1733.31,0.00016767,2]
[366051377,1750032668124,-151.0,0.00016767,2]
[366051378,1750032668135,-781.63,0.00016767,2]
[366051379,1750032668145,-151.0,0.00016767,2]
[366051380,1750032668157,-151.0,0.00016767,2]
[366051381,1750032668168,-758.75,0.00016767,2]
[366051382,1750032668178,-151.0,0.00016767,2]
[366051383,1750032668188,-151.0,0.00016767,2]
[366051384,1750032668199,-151.0,0.00016767,2]
[366051385,1750032668210,-721.86,0.00016767,2]
[366051386,1750032668220,-996.86,0.00016767,2]
[366051387,1750032668231,-490.0,0.00016767,2]
[366051388,1750032668241,-490.0,0.00016767,2]
[366051389,1750032668470,-490.0,0.00016767,2]
[366051390,1750032668480,-899.5,0.00016767,2]
[366051391,1750032668490,-1679.2,0.00016767,2]
[366051392,1750032668500,-711.93,0.00016767,2]
[366051393,1750032668509,-560.06,0.00016767,2]
[366051394,1750032668520,-1333.59,0.00016767,2]
[366051395,1750032668531,-490.0,0.00016767,2]
[366051396,1750032668541,-865.28858851,0.00016767,2]
[366051397,1750032669187,-276.69141149,0.00016767,2]
[366051398,1750032669198,-490.0,0.00016767,2]
[366051399,1750032669209,-490.0,0.00016767,2]
[366051400,1750032669220,-490.0,0.00016767,2]
[366051401,1750032669230,-1698.15,0.00016767,2]
[366051402,1750032669240,-492.01581312,0.00016767,2]
[366051403,1750032670128,-471.47418688,0.00016767,2]
[366051404,1750032670138,-490.0,0.00016767,2]
[366051405,1750032670148,-490.0,0.00016767,2]
[366051406,1750032670158,-1067.41,0.00016767,2]
[366051407,1750032670168,-720.01,0.00016767,2]
[366051408,1750032670179,-490.0,0.00016767,2]
[366051409,1750032670188,-682.3,0.00016767,2]
[366051410,1750032670199,-1399.05,0.00016767,2]
[366051411,1750032670209,-853.27,0.00016767,2]
[366051412,1750032670219,-737.11,0.00016767,2]
[366051413,1750032670229,-490.0,0.00016767,2]
[366051414,1750032670240,-1863.9,0.00016767,2]
[366051415,1750032670251,-860.71,0.00016767,2]
[366051416,1750032670261,-490.0,0.00016767,2]
[366051417,1750032670271,-200.79215753,0.00016767,2]
[366051418,1750032670378,-1229.60784247,0.00016767,2]
[366051419,1750032670389,-51.87055634,0.00016767,2]
[366051420,1750032768492,500.0,0.00015489,2]
[366051421,1750032888316,404.45565207,0.00024657,120]
[366051422,1750033331697,203.0,0.00015214,2]
[366051423,1750033465121,1017.6,0.00024658,120]
[366051425,1750033476617,298.77,0.00013699,2]
[366051438,1750033646420,1000.0,0.00015468,2]
[366051439,1750033680155,500.0,0.00023,120]
[366051440,1750033691337,500.84,0.00023,120]
[366051441,1750033710539,500.0,0.00023,120]
[366051443,1750033720787,231.87,0.00015456,2]
[366051487,1750033831945,-1141.939473,0.00015535,2]
[366051488,1750033831960,-819.11991005,0.00015535,2]
[366051489,1750033832002,-589.39470095,0.00015535,2]
[366051490,1750033832015,-124.51313476,0.00015614,2]
[366051491,1750033832030,-78.48686524,0.00015614,2]
[366051492,1750033832041,-300.0,0.00015818,2]
[366051493,1750033832054,-250.0,0.00015858,2]
[366051494,1750033832067,-114.32833881,0.00015888,2]
[366051495,1750033832082,-93.07166119,0.00015888,2]
[366051496,1750033832094,-300.0,0.00016136,2]
[366051497,1750033832106,-1200.0,0.00016136,2]
[366051498,1750033832120,-259.0,0.00016137,2]
[366051499,1750033832133,-300.0,0.00016137,2]
[366051500,1750033832145,-304.77,0.00016138,2]
[366051501,1750033832158,-119.35833881,0.00016138,2]
[366051504,1750033832178,-181.57166119,0.00016138,2]
[366051506,1750033832190,-305.51,0.00016138,2]
[366051509,1750033832202,-305.02,0.00016138,2]
[366051511,1750033832215,-305.54,0.00016156,2]
[366051513,1750033832228,-152.09,0.00016156,2]
[366051516,1750033832240,-301.33,0.00016156,2]
[366051518,1750033832252,-305.86,0.00016156,2]
[366051520,1750033832265,-12.19279626,0.00016238,2]
[366051523,1750033832283,-293.43720374,0.00016238,2]
[366051525,1750033832295,-226.84671302,0.00016238,2]
[366051529,1750033832327,-73.69328698,0.00016238,2]
[366051531,1750033832339,-351.1260679,0.00016328,2]
[366051532,1750033832354,-1010.66891909,0.00016328,2]
[366051533,1750033832370,-550.99707701,0.00016328,2]
[366051605,1750033839924,-2668.90509266,0.00015514,2]
[366051606,1750033839934,-393556.68846562,0.00016328,2]
[366051607,1750033840236,-1404.84014262,0.00016328,2]
[366051608,1750033840251,-356.4600005,0.00016328,2]
[366051617,1750033842922,-371.37569924,0.00016328,2]
[366051618,1750033842934,-3455.27680065,0.00016328,2]
[366051619,1750033843077,-453.0,0.00016328,2]
[366051624,1750033846019,-49967.1951714,0.00016328,2]
[366051626,1750033846386,-1057.0,0.00016328,2]
[366051627,1750033867850,1000.0,0.00024657,120]
[366051628,1750033879117,1000.0,0.00024657,120]
[366051629,1750033894769,1000.0,0.0002,30]
[366051630,1750033906606,1000.0,0.0002,30]
[366051631,1750033921324,1000.0,0.0002,30]
[366051632,1750033960768,1000.0,0.00024657,120]
[366051633,1750033969432,1000.0,0.00024657,120]
[366051634,1750034052695,202.0,0.00014614,2]
[366051635,1750034093215,504.0,0.00024649,120]
[366051636,1750034404677,5000.0,0.00015182,2]
[366051637,1750034404819,5000.0,0.00015182,2]
[366051638,1750034405101,5000.0,0.00015182,2]
[366051639,1750034405188,5000.0,0.00015182,2]
[366051640,1750034412071,202.0,0.00015078,2]
[366051641,1750034426440,214.0,0.00024658,120]
[366051642,1750034712292,283.83,0.00013699,2]
[366051647,1750034928099,500.0,0.0001549,2]
[366051648,1750034936162,500.0,0.0001549,2]
[366051649,1750034940486,241.52,0.00015393,2]
[366051650,1750034944226,500.0,0.0001549,2]
[366051651,1750034951560,500.0,0.0001549,2]
[366051653,1750034959026,500.0,0.0001549,2]
[366051654,1750034966361,500.0,0.0001549,2]
[366051655,1750034974303,500.0,0.0001549,2]
[366051656,1750034981745,500.0,0.0001549,2]
[366051663,1750034989330,500.0,0.0001549,2]
[366051665,1750034999718,500.0,0.0001549,2]
[366051666,1750035008818,500.0,0.0001549,2]
[366051667,1750035028874,500.0,0.0001549,2]
[366051675,1750035032207,-202.0,0.00015575,2]
[366051676,1750035032217,-250.0,0.00015683,2]
[366051677,1750035032227,-166.2,0.00015891,2]
[366051678,1750035032239,-306.0,0.0001601,2]
[366051679,1750035032249,-303.19,0.0001609,2]
[366051680,1750035032260,-304.36,0.0001609,2]
[366051681,1750035032272,-302.62,0.00016138,2]
[366051682,1750035032282,-315.55224672,0.00016142,2]
[366051683,1750035032292,-1200.0,0.00016299,2]
[366051684,1750035032303,-881.77395807,0.000163,2]
[366051685,1750035032339,-1118.22604193,0.000163,2]
[366051686,1750035032349,-437.35463835,0.000163,2]
[366051687,1750035032418,-1434.64536165,0.000163,2]
[366051688,1750035032429,-3416.36768354,0.00016328,2]
[366051689,1750035032441,-35819.47121834,0.00016328,2]
[366051926,1750035040139,-10424.0,0.00016328,2]
[366051927,1750035040263,-2597.25,0.00016328,2]
[366051928,1750035041212,-10924.05760615,0.00016328,2]
[366051929,1750035041224,-289.15000193,0.00016328,2]
[366051930,1750035041245,-2325.0000005,0.00016328,2]
[366051931,1750035041256,-1705.5582732,0.00016328,2]
[366051932,1750035041269,-574.51572812,0.00016328,2]
[366051933,1750035041281,-190174.21365018,0.00016328,2]
[366051934,1750035041343,-8219.2528,0.00016328,2]
[366051935,1750035041355,-1049.41419005,0.00016328,2]
[366051936,1750035041367,-1685.77121904,0.00016328,2]
[366051937,1750035041378,-1007.52312096,0.00016328,2]
[366051943,1750035043230,-10604.3588,0.00016328,2]
[366051944,1750035043289,-64494.88237464,0.00016328,2]
[366051945,1750035043303,-607.80095693,0.00016328,2]
[366051946,1750035043415,-1058299.99999914,0.00016328,2]
[366051956,1750035046128,-2792.54353446,0.00016328,2]
[366051957,1750035046287,-83306.77959463,0.00016328,2]
[366051958,1750035046298,-276.48679559,0.00016328,2]
[366051959,1750035046354,-395.68920678,0.00016328,2]
[366051973,1750035133430,1000.0,0.00015452,2]
[366051974,1750035316681,2000.0,0.00024658,120]
[366051975,1750035417235,500.0,0.000246,120]
[366051977,1750035492010,202.0,0.00015107,2]
[366052003,1750036105872,185.49,0.00015286,2]
[366052004,1750036107779,269.63,0.00013699,2]
[366052077,1750036164702,1000.0,0.00015281,2]
[366052079,1750036211786,202.0,0.00014655,2]
[366052092,1750036232245,-2638.97822055,0.00015884,2]
[366052093,1750036232256,-250.0,0.00015963,2]
[366052094,1750036232265,-609.22288307,0.00015984,2]
[366052095,1750036232275,-210.68290712,0.00015999,2]
[366052096,1750036232285,-1200.0,0.00016099,2]
[366052097,1750036232295,-300.0,0.00016099,2]
[366052098,1750036232305,-302.4,0.000161,2]
[366052099,1750036232315,-300.86,0.000161,2]
[366052100,1750036232325,-167.0,0.000161,2]
[366052101,1750036232334,-167.0,0.000161,2]
[366052102,1750036232344,-167.0,0.000161,2]
[366052103,1750036232354,-1000.0,0.000161,2]
[366052104,1750036232363,-2775.73744472,0.000161,2]
[366052105,1750036232522,-481.47383334,0.000161,2]
[366052106,1750036232532,-256.62290788,0.00016111,2]
[366052107,1750036232544,-44.72709212,0.00016111,2]
[366052108,1750036232554,-300.0,0.00016112,2]
[366052109,1750036232564,-305.73,0.00016113,2]
[366052110,1750036232573,-305.44,0.00016131,2]
[366052111,1750036232583,-300.8,0.00016131,2]
[366052112,1750036232592,-207.4,0.00016199,2]
[366052113,1750036232602,-151.0,0.00016199,2]
[366052114,1750036232612,-151.0,0.00016199,2]
[366052115,1750036232622,-198.0,0.00016199,2]
[366052116,1750036232632,-715.02337882,0.00016199,2]
[366052253,1750036238486,-1242.83262118,0.00016199,2]
[366052254,1750036238497,-151.0,0.00016199,2]
[366052255,1750036238507,-344.12,0.000162,2]
[366052256,1750036238519,-1164.5,0.000162,2]
[366052257,1750036238529,-1164.5,0.000162,2]
[366052258,1750036238540,-378.94,0.000162,2]
[366052260,1750036238551,-166.20041608,0.00016219,2]
[366052262,1750036238561,-449.86482034,0.00016227,2]
[366052263,1750036238571,-302.86,0.00016228,2]
[366052264,1750036238581,-301.6,0.00016228,2]
[366052265,1750036238591,-301.17,0.00016228,2]
[366052266,1750036238602,-305.42,0.00016228,2]